[Event "Titled Tuesday Blitz April 26 Early 2022"]
[White "Horobetz, Graham"]
[Black "Bluebaum, Matthias"]
[WhiteFideId "2047322"]
[BlackFideId "24651516"]
[WhiteElo "2592"]
[BlackElo "2550"]
[Result "0-1"]
[Round "04"]
[TimeControl "180+1"]
[Date "2022.04.26"]
[WhiteClock "0:00:05"]
[BlackClock "0:00:23"]

1. e4 {[%clk 0:03:00]}  c6 {[%clk 0:03:00]} 2. d4 {[%clk 0:02:59]}  d5 {[%clk 0:03:01]} 3. Nc3 {[%clk 0:02:59]}  dxe4 {[%clk 0:03:00]} 4. Nxe4 {[%clk 0:03:00]}  Nf6 {[%clk 0:03:01]} 5. Nxf6+ {[%clk 0:03:00]}  exf6 {[%clk 0:03:02]} 6. c3 {[%clk 0:03:01]}  Bd6 {[%clk 0:03:02]} 7. Bd3 {[%clk 0:03:02]}  O-O {[%clk 0:03:03]} 8. Qc2 {[%clk 0:03:02]}  Re8+ {[%clk 0:03:03]} 9. Ne2 {[%clk 0:03:03]}  h5 {[%clk 0:03:04]} 10. Be3 {[%clk 0:03:02]}  Nd7 {[%clk 0:03:04]} 11. O-O-O {[%clk 0:03:03]}  Nf8 {[%clk 0:03:04]} 12. h3 {[%clk 0:03:03]}  h4 {[%clk 0:03:04]} 13. Kb1 {[%clk 0:03:00]}  Be6 {[%clk 0:03:04]} 14. c4 {[%clk 0:03:00]}  Rc8 {[%clk 0:03:04]} 15. Nc3 {[%clk 0:02:59]}  Bb4 {[%clk 0:03:05]} 16. Rdg1 {[%clk 0:02:47]}  b5 {[%clk 0:03:04]} 17. c5 {[%clk 0:02:44]}  Bxc3 {[%clk 0:03:00]} 18. bxc3 {[%clk 0:02:37]}  Bd5 {[%clk 0:02:53]} 19. Bf4 {[%clk 0:02:12]}  Ne6 {[%clk 0:02:32]} 20. Bd6 {[%clk 0:02:11]}  Qa5 {[%clk 0:02:16]} 21. Qb2 {[%clk 0:02:04]}  Ng5 {[%clk 0:02:10]} 22. f3 {[%clk 0:01:24]}  Re3 {[%clk 0:02:09]} 23. Rd1 {[%clk 0:01:24]}  Bc4 {[%clk 0:02:10]} 24. Qc2 {[%clk 0:01:01]}  Rce8 {[%clk 0:02:04]} 25. Bf4 {[%clk 0:00:54]}  Rxd3 {[%clk 0:01:36]} 26. Rxd3 {[%clk 0:00:55]}  Bxd3 {[%clk 0:01:37]} 27. Qxd3 {[%clk 0:00:54]}  Qa3 {[%clk 0:01:32]} 28. Bc1 {[%clk 0:00:52]}  Qa6 {[%clk 0:01:31]} 29. Bxg5 {[%clk 0:00:47]}  fxg5 {[%clk 0:01:31]} 30. Qd2 {[%clk 0:00:48]}  b4 {[%clk 0:01:27]} 31. cxb4 {[%clk 0:00:42]}  Re2 {[%clk 0:01:27]} 32. Qc3 {[%clk 0:00:30]}  Qxa2+ {[%clk 0:01:26]} 33. Kc1 {[%clk 0:00:31]}  Rxg2 {[%clk 0:01:25]} 34. Re1 {[%clk 0:00:29]}  Re2 {[%clk 0:01:25]} 35. Rxe2 {[%clk 0:00:28]}  Qxe2 {[%clk 0:01:26]} 36. d5 {[%clk 0:00:26]}  Qf1+ {[%clk 0:01:12]} 37. Kb2 {[%clk 0:00:26]}  Qxh3 {[%clk 0:01:12]} 38. dxc6 {[%clk 0:00:23]}  Qe6 {[%clk 0:01:06]} 39. b5 {[%clk 0:00:21]}  Qe2+ {[%clk 0:01:05]} 40. Kc1 {[%clk 0:00:14]}  Qf1+ {[%clk 0:00:59]} 41. Kc2 {[%clk 0:00:10]}  Qxb5 {[%clk 0:00:56]} 42. c7 {[%clk 0:00:10]}  Qd7 {[%clk 0:00:57]} 43. Qe5 {[%clk 0:00:10]}  h3 {[%clk 0:00:56]} 44. Qd6 {[%clk 0:00:10]}  Qf5+ {[%clk 0:00:56]} 45. Kd2 {[%clk 0:00:08]}  Kh7 {[%clk 0:00:54]} 46. c6 {[%clk 0:00:08]}  f6 {[%clk 0:00:47]} 47. Qd7 {[%clk 0:00:09]}  Qf4+ {[%clk 0:00:45]} 48. Ke2 {[%clk 0:00:09]}  h2 {[%clk 0:00:40]} 49. Qh3+ {[%clk 0:00:08]}  Qh4 {[%clk 0:00:37]} 50. Qf5+ {[%clk 0:00:05]}  g6 {[%clk 0:00:26]} 51. Qd7+ {[%clk 0:00:05]}  Kh6 {[%clk 0:00:27]} 52. c8=Q {[%clk 0:00:06]}  g4 {[%clk 0:00:27]} 53. Qh8+ {[%clk 0:00:05]}  Kg5 {[%clk 0:00:28]} 54. Qd5+ {[%clk 0:00:05]}  f5 {[%clk 0:00:27]} 55. Qhd8+ {[%clk 0:00:05]}  Kh5 {[%clk 0:00:26]} 56. Qxh4+ {[%clk 0:00:05]}  Kxh4 {[%clk 0:00:27]} 57. Qd6 {[%clk 0:00:05]}  h1=Q {[%clk 0:00:26]} 58. Qf6+ {[%clk 0:00:06]}  Kg3 {[%clk 0:00:26]} 59. fxg4 {[%clk 0:00:05]}  Qe4+ {[%clk 0:00:26]} 60. Kd2 {[%clk 0:00:05]}  f4 {[%clk 0:00:25]} 61. Qd6 {[%clk 0:00:04]}  Qe3+ {[%clk 0:00:23]} 62. Kc2 {[%clk 0:00:05]}  Qe2+ {[%clk 0:00:23]} 63. Kc3 {[%clk 0:00:05]}  Qe1+ {[%clk 0:00:22]} 64. Kc4 {[%clk 0:00:05]}  Qc1+ {[%clk 0:00:22]} 65. Kb5 {[%clk 0:00:05]}  Qb2+ {[%clk 0:00:21]} 66. Kc4 {[%clk 0:00:05]}  Qc2+ {[%clk 0:00:19]} 67. Kb5 {[%clk 0:00:05]}  Qb3+ {[%clk 0:00:19]} 68. Kc5 {[%clk 0:00:05]}  Qa3+ {[%clk 0:00:18]} 69. Kd5 {[%clk 0:00:05]}  Qxd6+ {[%clk 0:00:19]} 70. Kxd6 {[%clk 0:00:06]}  f3 {[%clk 0:00:20]} 71. c7 {[%clk 0:00:06]}  f2 {[%clk 0:00:20]} 72. c8=Q {[%clk 0:00:06]}  f1=Q {[%clk 0:00:21]} 73. Qc3+ {[%clk 0:00:05]}  Kxg4 {[%clk 0:00:22]} 74. Qd4+ {[%clk 0:00:05]}  Qf4+ {[%clk 0:00:22]} 75. Qxf4+ {[%clk 0:00:05]}  Kxf4 {[%clk 0:00:23]} 0-1


[Site "https://www.chess.com"]

[Event "Titled Tuesday Blitz April 26 Early 2022"]
[White "Jakubowski, Krzysztof"]
[Black "Zhigalko, Sergei"]
[WhiteFideId "1112848"]
[BlackFideId "13502956"]
[WhiteElo "2365"]
[BlackElo "2662"]
[Result "0-1"]
[Round "04"]
[TimeControl "180+1"]
[Date "2022.04.26"]
[WhiteClock "0:00:01"]
[BlackClock "0:00:02"]

1. e4 {[%clk 0:03:00]}  c5 {[%clk 0:02:56]} 2. Nf3 {[%clk 0:03:00]}  Nc6 {[%clk 0:02:55]} 3. d4 {[%clk 0:02:59]}  cxd4 {[%clk 0:02:56]} 4. Nxd4 {[%clk 0:02:59]}  Nf6 {[%clk 0:02:57]} 5. Nc3 {[%clk 0:02:58]}  e5 {[%clk 0:02:56]} 6. Ndb5 {[%clk 0:02:58]}  d6 {[%clk 0:02:56]} 7. Bg5 {[%clk 0:02:57]}  a6 {[%clk 0:02:56]} 8. Na3 {[%clk 0:02:57]}  b5 {[%clk 0:02:57]} 9. Nd5 {[%clk 0:02:56]}  Be7 {[%clk 0:02:57]} 10. Bxf6 {[%clk 0:02:56]}  Bxf6 {[%clk 0:02:58]} 11. c3 {[%clk 0:02:56]}  Bg5 {[%clk 0:02:58]} 12. Nc2 {[%clk 0:02:55]}  Ne7 {[%clk 0:02:58]} 13. Ncb4 {[%clk 0:02:51]}  O-O {[%clk 0:02:58]} 14. Nxe7+ {[%clk 0:02:48]}  Qxe7 {[%clk 0:02:58]} 15. a4 {[%clk 0:02:44]}  bxa4 {[%clk 0:02:51]} 16. Bc4 {[%clk 0:02:36]}  a5 {[%clk 0:02:49]} 17. Nd5 {[%clk 0:02:33]}  Qb7 {[%clk 0:02:47]} 18. Qe2 {[%clk 0:02:24]}  Bd7 {[%clk 0:02:44]} 19. O-O {[%clk 0:02:17]}  Rab8 {[%clk 0:02:43]} 20. Ra2 {[%clk 0:02:15]}  Kh8 {[%clk 0:02:43]} 21. g3 {[%clk 0:02:12]}  f5 {[%clk 0:02:30]} 22. exf5 {[%clk 0:01:18]}  Rxf5 {[%clk 0:02:29]} 23. Qe4 {[%clk 0:01:08]}  g6 {[%clk 0:01:21]} 24. h4 {[%clk 0:00:56]}  Bh6 {[%clk 0:01:19]} 25. Bd3 {[%clk 0:00:49]}  Bc6 {[%clk 0:01:11]} 26. c4 {[%clk 0:00:47]}  Qb3 {[%clk 0:01:01]} 27. Bb1 {[%clk 0:00:42]}  Rbf8 {[%clk 0:00:53]} 28. Kg2 {[%clk 0:00:36]}  Bc1 {[%clk 0:00:20]} 29. Qe2 {[%clk 0:00:24]}  Be3 {[%clk 0:00:13]} 30. Ra3 {[%clk 0:00:19]}  Bxd5+ {[%clk 0:00:12]} 31. cxd5 {[%clk 0:00:11]}  Qxd5+ {[%clk 0:00:13]} 32. f3 {[%clk 0:00:10]}  Bc5 {[%clk 0:00:06]} 33. Bxf5 {[%clk 0:00:09]}  gxf5 {[%clk 0:00:07]} 34. Rd3 {[%clk 0:00:08]}  Qb7 {[%clk 0:00:04]} 35. Rfd1 {[%clk 0:00:07]}  Rg8 {[%clk 0:00:04]} 36. Kh2 {[%clk 0:00:06]}  Qg7 {[%clk 0:00:03]} 37. Qe1 {[%clk 0:00:05]}  Qf6 {[%clk 0:00:03]} 38. Rd5 {[%clk 0:00:04]}  Bd4 {[%clk 0:00:03]} 39. Rxa5 {[%clk 0:00:03]}  Bxb2 {[%clk 0:00:02]} 40. Rxa4 {[%clk 0:00:03]}  Bd4 {[%clk 0:00:02]} 41. Ra2 {[%clk 0:00:02]}  h5 {[%clk 0:00:02]} 42. Rg2 {[%clk 0:00:02]}  Rg7 {[%clk 0:00:02]} 43. Qe2 {[%clk 0:00:02]}  f4 {[%clk 0:00:02]} 44. g4 {[%clk 0:00:01]}  Qxh4# {[%clk 0:00:02]} 0-1


[Site "https://www.chess.com"]

[Event "Titled Tuesday Blitz April 26 Early 2022"]
[White "Jaracz, Pawel"]
[Black "Pires, Marcos Vinicius Torsani"]
[WhiteFideId "1102222"]
[BlackFideId "2118939"]
[WhiteElo "2429"]
[BlackElo "2273"]
[Result "1-0"]
[Round "04"]
[TimeControl "180+1"]
[Date "2022.04.26"]
[WhiteClock "0:01:04"]
[BlackClock "0:01:22"]

1. e4 {[%clk 0:03:00]}  e6 {[%clk 0:02:55]} 2. d4 {[%clk 0:02:59]}  d5 {[%clk 0:02:54]} 3. Nc3 {[%clk 0:02:59]}  Nf6 {[%clk 0:02:53]} 4. Bg5 {[%clk 0:02:56]}  dxe4 {[%clk 0:02:53]} 5. Nxe4 {[%clk 0:02:54]}  Be7 {[%clk 0:02:53]} 6. Bxf6 {[%clk 0:02:54]}  gxf6 {[%clk 0:02:53]} 7. Nf3 {[%clk 0:02:53]}  a6 {[%clk 0:02:48]} 8. g3 {[%clk 0:02:52]}  f5 {[%clk 0:02:49]} 9. Ned2 {[%clk 0:02:49]}  b5 {[%clk 0:02:49]} 10. Bg2 {[%clk 0:02:49]}  Bb7 {[%clk 0:02:48]} 11. O-O {[%clk 0:02:45]}  Nd7 {[%clk 0:02:42]} 12. a4 {[%clk 0:02:42]}  O-O {[%clk 0:02:38]} 13. Qe2 {[%clk 0:02:39]}  c5 {[%clk 0:02:29]} 14. axb5 {[%clk 0:02:37]}  cxd4 {[%clk 0:02:21]} 15. bxa6 {[%clk 0:02:34]}  Bd5 {[%clk 0:02:17]} 16. Nxd4 {[%clk 0:02:31]}  Qb6 {[%clk 0:02:15]} 17. Bxd5 {[%clk 0:02:23]}  Qxd4 {[%clk 0:02:03]} 18. Bxa8 {[%clk 0:02:18]}  Rxa8 {[%clk 0:02:04]} 19. Qb5 {[%clk 0:01:59]}  Ne5 {[%clk 0:01:50]} 20. Rfe1 {[%clk 0:01:41]}  Bf6 {[%clk 0:01:47]} 21. c3 {[%clk 0:01:33]}  Qxd2 {[%clk 0:01:46]} 22. Rxe5 {[%clk 0:01:30]}  Bxe5 {[%clk 0:01:46]} 23. Qxe5 {[%clk 0:01:28]}  Qxb2 {[%clk 0:01:47]} 24. Qa5 {[%clk 0:01:19]}  h5 {[%clk 0:01:32]} 25. a7 {[%clk 0:01:14]}  h4 {[%clk 0:01:32]} 26. gxh4 {[%clk 0:01:07]}  Qe2 {[%clk 0:01:25]} 27. Qc7 {[%clk 0:01:06]}  Qg4+ {[%clk 0:01:22]} 28. Qg3 {[%clk 0:01:05]}  Qxg3+ {[%clk 0:01:22]} 29. hxg3 {[%clk 0:01:05]}  Kg7 {[%clk 0:01:23]} 30. c4 {[%clk 0:01:05]}  Kf6 {[%clk 0:01:22]} 31. c5 {[%clk 0:01:04]}  Ke5 {[%clk 0:01:22]} 32. h5 {[%clk 0:01:04]}  Kd5 {[%clk 0:01:22]} 33. h6 {[%clk 0:01:04]} 1-0


[Site "https://www.chess.com"]

[Event "Titled Tuesday Blitz April 26 Early 2022"]
[White "Jumabayev, Rinat"]
[Black "Taboas Rodriguez, Daniel"]
[WhiteFideId "13702661"]
[BlackFideId "2208466"]
[WhiteElo "2561"]
[BlackElo "2429"]
[Result "1-0"]
[Round "04"]
[TimeControl "180+1"]
[Date "2022.04.26"]
[WhiteClock "0:00:08"]
[BlackClock "0:00:41"]

1. d4 {[%clk 0:02:43]}  Nf6 {[%clk 0:02:58]} 2. c4 {[%clk 0:02:43]}  g6 {[%clk 0:02:58]} 3. g3 {[%clk 0:02:43]}  Bg7 {[%clk 0:02:59]} 4. Bg2 {[%clk 0:02:44]}  O-O {[%clk 0:03:00]} 5. Nf3 {[%clk 0:02:44]}  b6 {[%clk 0:02:58]} 6. O-O {[%clk 0:02:43]}  Bb7 {[%clk 0:02:57]} 7. d5 {[%clk 0:02:44]}  Na6 {[%clk 0:02:56]} 8. Nc3 {[%clk 0:02:43]}  Nc5 {[%clk 0:02:56]} 9. Qc2 {[%clk 0:02:41]}  e6 {[%clk 0:02:54]} 10. Rd1 {[%clk 0:02:41]}  exd5 {[%clk 0:02:54]} 11. cxd5 {[%clk 0:02:41]}  Re8 {[%clk 0:02:54]} 12. Nd4 {[%clk 0:02:40]}  Qe7 {[%clk 0:02:42]} 13. d6 {[%clk 0:02:13]}  cxd6 {[%clk 0:02:32]} 14. Bxb7 {[%clk 0:02:09]}  Nxb7 {[%clk 0:02:33]} 15. Bg5 {[%clk 0:02:09]}  Qe5 {[%clk 0:02:26]} 16. Nf3 {[%clk 0:02:00]}  Qe6 {[%clk 0:02:18]} 17. Bxf6 {[%clk 0:01:31]}  Bxf6 {[%clk 0:02:18]} 18. Nd5 {[%clk 0:01:31]}  Rac8 {[%clk 0:02:17]} 19. Qd2 {[%clk 0:01:30]}  Bg7 {[%clk 0:02:10]} 20. e3 {[%clk 0:01:16]}  Nc5 {[%clk 0:02:05]} 21. Rab1 {[%clk 0:01:08]}  Ne4 {[%clk 0:02:04]} 22. Qd3 {[%clk 0:00:58]}  Qf5 {[%clk 0:02:04]} 23. Kg2 {[%clk 0:00:57]}  Rc5 {[%clk 0:01:56]} 24. h3 {[%clk 0:00:51]}  h5 {[%clk 0:01:55]} 25. b4 {[%clk 0:00:32]}  Rcc8 {[%clk 0:01:41]} 26. Rb3 {[%clk 0:00:19]}  g5 {[%clk 0:01:35]} 27. Qe2 {[%clk 0:00:18]}  g4 {[%clk 0:01:16]} 28. hxg4 {[%clk 0:00:17]}  hxg4 {[%clk 0:01:16]} 29. Nh4 {[%clk 0:00:17]}  Qg5 {[%clk 0:01:09]} 30. Rbd3 {[%clk 0:00:16]}  Re5 {[%clk 0:01:03]} 31. Nf4 {[%clk 0:00:14]}  Rf5 {[%clk 0:01:01]} 32. Rxd6 {[%clk 0:00:10]}  Nxd6 {[%clk 0:01:01]} 33. Rxd6 {[%clk 0:00:11]}  Rf6 {[%clk 0:01:00]} 34. Rxd7 {[%clk 0:00:11]}  Rfc6 {[%clk 0:01:00]} 35. Qd3 {[%clk 0:00:10]}  Rc2 {[%clk 0:00:55]} 36. Nf5 {[%clk 0:00:11]}  Qf6 {[%clk 0:00:52]} 37. Ne7+ {[%clk 0:00:10]}  Kh8 {[%clk 0:00:50]} 38. Nxc8 {[%clk 0:00:07]}  Rxc8 {[%clk 0:00:51]} 39. Qd5 {[%clk 0:00:07]}  Kg8 {[%clk 0:00:49]} 40. Rxa7 {[%clk 0:00:07]}  Rc2 {[%clk 0:00:46]} 41. Qd7 {[%clk 0:00:06]}  Bf8 {[%clk 0:00:44]} 42. Qxg4+ {[%clk 0:00:06]}  Qg7 {[%clk 0:00:43]} 43. Qxg7+ {[%clk 0:00:05]}  Kxg7 {[%clk 0:00:44]} 44. a3 {[%clk 0:00:06]}  Bd6 {[%clk 0:00:44]} 45. Nd5 {[%clk 0:00:06]}  Be5 {[%clk 0:00:43]} 46. Nxb6 {[%clk 0:00:05]}  Bc3 {[%clk 0:00:43]} 47. Kf1 {[%clk 0:00:05]}  Rc1+ {[%clk 0:00:43]} 48. Ke2 {[%clk 0:00:06]}  Rc2+ {[%clk 0:00:44]} 49. Kd3 {[%clk 0:00:06]}  Rc1 {[%clk 0:00:44]} 50. f4 {[%clk 0:00:06]}  Be1 {[%clk 0:00:45]} 51. Nd5 {[%clk 0:00:06]}  Bxg3 {[%clk 0:00:46]} 52. Ke4 {[%clk 0:00:07]}  Re1 {[%clk 0:00:45]} 53. Rd7 {[%clk 0:00:07]}  Bf2 {[%clk 0:00:45]} 54. b5 {[%clk 0:00:07]}  Ra1 {[%clk 0:00:45]} 55. b6 {[%clk 0:00:08]}  Rxa3 {[%clk 0:00:45]} 56. b7 {[%clk 0:00:08]}  Rb3 {[%clk 0:00:45]} 57. Kf3 {[%clk 0:00:08]}  Be1 {[%clk 0:00:46]} 58. Ke2 {[%clk 0:00:08]}  Ba5 {[%clk 0:00:46]} 59. Ne7 {[%clk 0:00:09]}  Bb6 {[%clk 0:00:41]} 60. b8=Q {[%clk 0:00:08]}  Rxe3+ {[%clk 0:00:41]} 61. Kd1 {[%clk 0:00:08]} 1-0


[Site "https://www.chess.com"]

[Event "Titled Tuesday Blitz April 26 Early 2022"]
[White "Lazavik, Denis"]
[Black "Moiseenko, Alexander"]
[WhiteFideId "13515110"]
[BlackFideId "14102560"]
[WhiteElo "2437"]
[BlackElo "2577"]
[Result "1-0"]
[Round "04"]
[TimeControl "180+1"]
[Date "2022.04.26"]
[WhiteClock "0:00:09"]
[BlackClock "0:00:01"]

1. d4 {[%clk 0:03:00]}  Nf6 {[%clk 0:02:57]} 2. c4 {[%clk 0:03:00]}  e6 {[%clk 0:02:57]} 3. Nf3 {[%clk 0:02:59]}  d5 {[%clk 0:02:57]} 4. g3 {[%clk 0:02:59]}  Bb4+ {[%clk 0:02:57]} 5. Bd2 {[%clk 0:02:59]}  Bd6 {[%clk 0:02:57]} 6. Bg2 {[%clk 0:02:54]}  c6 {[%clk 0:02:56]} 7. Qc2 {[%clk 0:02:53]}  Nbd7 {[%clk 0:02:56]} 8. O-O {[%clk 0:02:49]}  O-O {[%clk 0:02:54]} 9. Rd1 {[%clk 0:02:35]}  Ne4 {[%clk 0:02:51]} 10. Nc3 {[%clk 0:02:28]}  Nxd2 {[%clk 0:02:50]} 11. Nxd2 {[%clk 0:02:25]}  f5 {[%clk 0:02:50]} 12. e3 {[%clk 0:02:25]}  Qe7 {[%clk 0:02:49]} 13. a3 {[%clk 0:02:23]}  Nf6 {[%clk 0:02:47]} 14. b4 {[%clk 0:02:23]}  Bd7 {[%clk 0:02:47]} 15. Qb3 {[%clk 0:02:16]}  Be8 {[%clk 0:02:46]} 16. b5 {[%clk 0:02:13]}  Bh5 {[%clk 0:02:44]} 17. Rdc1 {[%clk 0:02:11]}  Kh8 {[%clk 0:02:35]} 18. Qa4 {[%clk 0:02:05]}  Rac8 {[%clk 0:01:49]} 19. Nb3 {[%clk 0:01:35]}  dxc4 {[%clk 0:01:26]} 20. Na5 {[%clk 0:01:23]}  cxb5 {[%clk 0:01:19]} 21. Nxb5 {[%clk 0:01:14]}  Be8 {[%clk 0:00:48]} 22. Nxb7 {[%clk 0:00:52]}  Bb8 {[%clk 0:00:35]} 23. Rxc4 {[%clk 0:00:50]}  Rxc4 {[%clk 0:00:26]} 24. Qxc4 {[%clk 0:00:50]}  Ne4 {[%clk 0:00:20]} 25. Nc5 {[%clk 0:00:43]}  a6 {[%clk 0:00:14]} 26. Nc3 {[%clk 0:00:23]}  Nxc5 {[%clk 0:00:13]} 27. dxc5 {[%clk 0:00:24]}  Be5 {[%clk 0:00:13]} 28. Rc1 {[%clk 0:00:24]}  Bxc3 {[%clk 0:00:06]} 29. Qxc3 {[%clk 0:00:23]}  Bb5 {[%clk 0:00:06]} 30. Qb4 {[%clk 0:00:16]}  Qc7 {[%clk 0:00:04]} 31. a4 {[%clk 0:00:16]}  Bc6 {[%clk 0:00:04]} 32. Qb6 {[%clk 0:00:16]}  Rc8 {[%clk 0:00:04]} 33. Qxc7 {[%clk 0:00:07]}  Rxc7 {[%clk 0:00:05]} 34. Bxc6 {[%clk 0:00:07]}  Rxc6 {[%clk 0:00:05]} 35. Kf1 {[%clk 0:00:08]}  Kg8 {[%clk 0:00:05]} 36. Ke2 {[%clk 0:00:08]}  e5 {[%clk 0:00:05]} 37. Kd3 {[%clk 0:00:09]}  Kf7 {[%clk 0:00:06]} 38. Kc4 {[%clk 0:00:09]}  Ke6 {[%clk 0:00:06]} 39. Rb1 {[%clk 0:00:10]}  Rc7 {[%clk 0:00:04]} 40. Rb6+ {[%clk 0:00:10]}  Ke7 {[%clk 0:00:04]} 41. Kd5 {[%clk 0:00:10]}  e4 {[%clk 0:00:03]} 42. Rxa6 {[%clk 0:00:10]}  Rd7+ {[%clk 0:00:02]} 43. Rd6 {[%clk 0:00:09]}  Ra7 {[%clk 0:00:01]} 44. Ke5 {[%clk 0:00:09]} 1-0


[Site "https://www.chess.com"]

[Event "Titled Tuesday Blitz April 26 Early 2022"]
[White "Le, Tuan Minh"]
[Black "Solovchuk, Oleksiy"]
[WhiteFideId "12401153"]
[BlackFideId "14115220"]
[WhiteElo "2450"]
[BlackElo "2305"]
[Result "1-0"]
[Round "04"]
[TimeControl "180+1"]
[Date "2022.04.26"]
[WhiteClock "0:02:39"]
[BlackClock "0:02:24"]

1. d4 {[%clk 0:02:59]}  Nf6 {[%clk 0:02:59]} 2. Nf3 {[%clk 0:02:59]}  e6 {[%clk 0:02:59]} 3. Bf4 {[%clk 0:02:54]}  b6 {[%clk 0:02:59]} 4. e3 {[%clk 0:02:51]}  Bb7 {[%clk 0:02:59]} 5. Nbd2 {[%clk 0:02:51]}  Be7 {[%clk 0:02:59]} 6. Bd3 {[%clk 0:02:51]}  c5 {[%clk 0:02:59]} 7. c3 {[%clk 0:02:51]}  cxd4 {[%clk 0:02:58]} 8. exd4 {[%clk 0:02:51]}  d6 {[%clk 0:02:58]} 9. O-O {[%clk 0:02:51]}  O-O {[%clk 0:02:58]} 10. Re1 {[%clk 0:02:51]}  Nbd7 {[%clk 0:02:58]} 11. h3 {[%clk 0:02:50]}  Re8 {[%clk 0:02:58]} 12. Bh2 {[%clk 0:02:50]}  a6 {[%clk 0:02:58]} 13. a4 {[%clk 0:02:48]}  Bc6 {[%clk 0:02:48]} 14. Qe2 {[%clk 0:02:48]}  Qc8 {[%clk 0:02:47]} 15. Nc4 {[%clk 0:02:48]}  Qc7 {[%clk 0:02:47]} 16. Ng5 {[%clk 0:02:43]}  Bf8 {[%clk 0:02:43]} 17. Qc2 {[%clk 0:02:40]}  b5 {[%clk 0:02:24]} 18. Bxh7+ {[%clk 0:02:39]} 1-0


[Site "https://www.chess.com"]

[Event "Titled Tuesday Blitz April 26 Early 2022"]
[White "Lopez, Henry"]
[Black "Aggelis, Nikolaos"]
[WhiteFideId "5203830"]
[BlackFideId "4213220"]
[WhiteElo "2177"]
[BlackElo "2154"]
[Result "0-1"]
[Round "04"]
[TimeControl "180+1"]
[Date "2022.04.26"]
[WhiteClock "0:00:01"]
[BlackClock "0:01:24"]

1. d4 {[%clk 0:03:00]}  d5 {[%clk 0:02:59]} 2. Nf3 {[%clk 0:03:00]}  Nf6 {[%clk 0:02:58]} 3. c4 {[%clk 0:02:57]}  c5 {[%clk 0:02:57]} 4. cxd5 {[%clk 0:02:56]}  cxd4 {[%clk 0:02:57]} 5. Qa4+ {[%clk 0:02:54]}  Qd7 {[%clk 0:02:54]} 6. Qxd4 {[%clk 0:02:51]}  Qxd5 {[%clk 0:02:54]} 7. Nc3 {[%clk 0:02:50]}  Qxd4 {[%clk 0:02:54]} 8. Nxd4 {[%clk 0:02:51]}  Bd7 {[%clk 0:02:53]} 9. g3 {[%clk 0:02:49]}  Nc6 {[%clk 0:02:51]} 10. Nb3 {[%clk 0:02:46]}  e5 {[%clk 0:02:48]} 11. Bg2 {[%clk 0:02:45]}  Bb4 {[%clk 0:02:40]} 12. O-O {[%clk 0:02:44]}  O-O-O {[%clk 0:02:40]} 13. Bg5 {[%clk 0:02:41]}  Be6 {[%clk 0:02:37]} 14. Rac1 {[%clk 0:02:37]}  Kb8 {[%clk 0:02:36]} 15. Ne4 {[%clk 0:02:29]}  Be7 {[%clk 0:02:35]} 16. Nec5 {[%clk 0:02:27]}  Bd5 {[%clk 0:02:31]} 17. e4 {[%clk 0:01:33]}  Bxb3 {[%clk 0:02:28]} 18. Nxb3 {[%clk 0:01:30]}  Nd4 {[%clk 0:02:28]} 19. Nxd4 {[%clk 0:01:28]}  Rxd4 {[%clk 0:02:29]} 20. Be3 {[%clk 0:01:17]}  Rb4 {[%clk 0:02:24]} 21. b3 {[%clk 0:01:16]}  Rd8 {[%clk 0:02:13]} 22. h3 {[%clk 0:01:01]}  a5 {[%clk 0:02:10]} 23. Rc2 {[%clk 0:00:31]}  a4 {[%clk 0:02:08]} 24. bxa4 {[%clk 0:00:28]}  Rxa4 {[%clk 0:02:09]} 25. Bb6 {[%clk 0:00:24]}  Rc8 {[%clk 0:02:06]} 26. Re2 {[%clk 0:00:18]}  Rc6 {[%clk 0:02:02]} 27. Rb1 {[%clk 0:00:17]}  Bc5 {[%clk 0:01:50]} 28. Bxc5 {[%clk 0:00:15]}  Rxc5 {[%clk 0:01:51]} 29. Reb2 {[%clk 0:00:15]}  Rc7 {[%clk 0:01:49]} 30. Rb5 {[%clk 0:00:10]}  Nd7 {[%clk 0:01:46]} 31. Rd5 {[%clk 0:00:09]}  Rxa2 {[%clk 0:01:42]} 32. Rbd1 {[%clk 0:00:09]}  Kc8 {[%clk 0:01:38]} 33. h4 {[%clk 0:00:08]}  b6 {[%clk 0:01:27]} 34. Bh3 {[%clk 0:00:08]}  Raa7 {[%clk 0:01:28]} 35. Rxe5 {[%clk 0:00:07]}  Kd8 {[%clk 0:01:24]} 36. Red5 {[%clk 0:00:07]}  Rab7 {[%clk 0:01:24]} 37. Rd6 {[%clk 0:00:06]}  b5 {[%clk 0:01:23]} 38. e5 {[%clk 0:00:06]}  b4 {[%clk 0:01:24]} 39. e6 {[%clk 0:00:06]}  fxe6 {[%clk 0:01:24]} 40. Bxe6 {[%clk 0:00:06]}  b3 {[%clk 0:01:24]} 41. R6d2 {[%clk 0:00:01]}  b2 {[%clk 0:01:24]} 0-1


[Site "https://www.chess.com"]

[Event "Titled Tuesday Blitz April 26 Early 2022"]
[White "Lou, Yiping"]
[Black "Sanal, Vahap"]
[WhiteFideId "8603928"]
[BlackFideId "6300545"]
[WhiteElo "2412"]
[BlackElo "2603"]
[Result "0-1"]
[Round "04"]
[TimeControl "180+1"]
[Date "2022.04.26"]
[WhiteClock "0:00:49"]
[BlackClock "0:01:57"]

1. e4 {[%clk 0:02:58]}  e5 {[%clk 0:02:55]} 2. Nf3 {[%clk 0:02:58]}  Nc6 {[%clk 0:02:56]} 3. Bc4 {[%clk 0:02:58]}  Bc5 {[%clk 0:02:56]} 4. d3 {[%clk 0:02:57]}  Nf6 {[%clk 0:02:56]} 5. O-O {[%clk 0:02:57]}  d6 {[%clk 0:02:56]} 6. c3 {[%clk 0:02:57]}  h6 {[%clk 0:02:54]} 7. Re1 {[%clk 0:02:55]}  a6 {[%clk 0:02:53]} 8. h3 {[%clk 0:02:54]}  Ba7 {[%clk 0:02:53]} 9. a4 {[%clk 0:02:53]}  O-O {[%clk 0:02:54]} 10. Nbd2 {[%clk 0:02:53]}  Be6 {[%clk 0:02:54]} 11. Bxe6 {[%clk 0:02:51]}  fxe6 {[%clk 0:02:54]} 12. b4 {[%clk 0:02:52]}  Qe8 {[%clk 0:02:52]} 13. Nf1 {[%clk 0:02:49]}  Nh5 {[%clk 0:02:52]} 14. Ra2 {[%clk 0:02:46]}  Ne7 {[%clk 0:02:52]} 15. Nh4 {[%clk 0:02:24]}  g5 {[%clk 0:02:47]} 16. Nf3 {[%clk 0:02:17]}  Nf4 {[%clk 0:02:42]} 17. N1h2 {[%clk 0:01:53]}  Neg6 {[%clk 0:02:40]} 18. d4 {[%clk 0:01:52]}  Qc6 {[%clk 0:02:29]} 19. Ng4 {[%clk 0:01:29]}  Qxc3 {[%clk 0:02:13]} 20. Nxh6+ {[%clk 0:01:18]}  Kg7 {[%clk 0:02:12]} 21. Ng4 {[%clk 0:01:16]}  Nxh3+ {[%clk 0:02:11]} 22. gxh3 {[%clk 0:01:03]}  Qxf3 {[%clk 0:02:09]} 23. Qxf3 {[%clk 0:00:56]}  Rxf3 {[%clk 0:02:10]} 24. dxe5 {[%clk 0:00:55]}  Nxe5 {[%clk 0:01:57]} 25. Nxe5 {[%clk 0:00:51]}  dxe5 {[%clk 0:01:58]} 26. Bxg5 {[%clk 0:00:49]}  Rg3+ {[%clk 0:01:57]} 0-1


[Site "https://www.chess.com"]